bitfinex-derivatives/quotes_BTCF0:USTF0_20260315
["timestamp","ask_amount","ask_price","bid_price","bid_amount"]
[1773585012099,0.041965,71477.0,71464.0,0.041972]
[1773585012301,0.0014,71476.0,71464.0,0.041972]
[1773585014701,0.043366,71476.0,71464.0,0.041972]
[1773585015704,0.041966,71475.0,71462.0,0.04582857]
[1773585017803,0.0014,71476.0,71462.0,0.00385557]
[1773585018196,0.0014,71476.0,71465.0,0.041971]
[1773585021707,0.0479881,71471.0,71448.0,0.041982]
[1773585022006,0.08813293,71458.0,71437.0,0.00213]
[1773585022208,0.08813293,71450.0,71435.0,0.04452212]
[1773585022507,0.041966,71476.0,71436.0,0.0014]
[1773585022508,0.041982,71448.0,71436.0,0.0014]
[1773585022803,0.041983,71446.0,71430.0,0.04592212]
[1773585023206,0.041983,71446.0,71431.0,0.0014]
[1773585023605,0.041983,71446.0,71430.0,0.04452212]
[1773585023810,0.041983,71446.0,71432.0,0.0014]
[1773585024205,0.041983,71446.0,71430.0,0.08651412]
[1773585024504,0.00017108,71447.0,71429.0,0.0014]
[1773585024710,0.04815918,71447.0,71429.0,0.0014]
[1773585025209,0.04815918,71447.0,71420.0,0.08813293]
[1773585025210,0.04815918,71447.0,71428.0,0.0014]
[1773585025908,0.08813293,71470.0,71447.0,0.04452212]
[1773585026112,0.041972,71464.0,71448.0,0.04452212]
[1773585026504,0.0014,71463.0,71448.0,0.04452212]
[1773585026906,0.041972,71464.0,71448.0,0.04452212]
[1773585027099,0.001,71464.0,71451.0,0.04452212]
[1773585027305,0.00876,71469.0,71453.0,0.04452212]
[1773585028610,0.00976,71469.0,71453.0,0.04452212]
[1773585029003,0.041972,71466.0,71453.0,0.04452212]
[1773585031116,0.041973,71463.0,71453.0,0.04452212]
[1773585031613,0.041973,71463.0,71453.0,0.04592212]
[1773585032309,0.041973,71463.0,71453.0,0.0014]
[1773585032516,0.041973,71463.0,71452.0,0.0014]
[1773585032914,0.041973,71463.0,71452.0,0.04452212]
[1773585033211,0.041973,71463.0,71452.0,0.04592212]
[1773585034109,0.041973,71463.0,71452.0,0.04452212]
[1773585034313,0.041973,71463.0,71453.0,0.0014]
[1773585034514,0.041973,71463.0,71451.0,0.0014]
[1773585034811,0.041973,71463.0,71449.0,0.041981]
[1773585035018,0.041973,71463.0,71451.0,0.0014]
[1773585035212,0.041974,71462.0,71447.0,0.04452212]
[1773585035513,0.041974,71462.0,71448.0,0.0014]
[1773585035821,0.041974,71462.0,71449.0,0.0014]
[1773585036301,0.041974,71462.0,71447.0,0.04452212]
[1773585036507,0.041974,71462.0,71450.0,0.0014]
[1773585036809,0.041974,71462.0,71447.0,0.04452212]
[1773585037013,0.041974,71462.0,71450.0,0.0014]
[1773585038416,0.041975,71461.0,71450.0,0.0014]
[1773585038810,0.041975,71461.0,71448.0,0.041982]
[1773585039016,0.041975,71461.0,71450.0,0.0014]
[1773585039811,0.08813293,71460.0,71430.0,0.2509928]
[1773585040012,0.0479881,71447.0,71427.0,0.04592212]
[1773585040312,0.041987,71439.0,71427.0,0.04452212]
[1773585040521,0.0493881,71446.0,71428.0,0.0014]
[1773585040715,0.041987,71439.0,71428.0,0.0014]
[1773585040917,0.0014,71446.0,71428.0,0.08791512]
[1773585041217,0.041977,71456.0,71436.0,0.08813293]
[1773585041414,0.041978,71455.0,71442.0,0.041985]
[1773585041622,0.041978,71455.0,71441.0,0.04592212]
[1773585041916,0.041979,71453.0,71441.0,0.04592212]
[1773585042110,0.04198,71452.0,71441.0,0.04592212]
[1773585045026,0.0014,71456.0,71441.0,0.04592212]
[1773585046311,0.08813293,71460.0,71441.0,0.04592212]
[1773585046510,0.041978,71455.0,71442.0,0.04452212]
[1773585047919,0.041979,71454.0,71442.0,0.04452212]
[1773585048520,0.041979,71453.0,71442.0,0.04452212]
[1773585050726,0.041978,71455.0,71442.0,0.08650712]
[1773585051023,0.041979,71454.0,71442.0,0.08650712]
[1773585051417,0.0493881,71457.0,71434.0,0.04452212]
[1773585051617,0.041981,71450.0,71434.0,0.04452212]
[1773585052131,0.041981,71450.0,71438.0,0.041987]
[1773585052429,0.041981,71450.0,71439.0,0.0014]
[1773585052729,0.0493881,71457.0,71439.0,0.0014]
[1773585052929,0.041982,71448.0,71439.0,0.0014]
[1773585053223,0.041982,71448.0,71431.0,0.00368]
[1773585053224,0.041983,71447.0,71437.0,0.0014]
[1773585053823,0.08813293,71450.0,71431.0,0.00368]
[1773585054128,0.041983,71447.0,71435.0,0.041989]
[1773585054329,0.041983,71447.0,71436.0,0.0014]
[1773585055019,0.041983,71447.0,71435.0,0.041989]
[1773585055218,0.041983,71447.0,71436.0,0.0014]
[1773585056228,0.08953293,71450.0,71436.0,0.0014]
[1773585056424,0.13580295,71450.0,71436.0,0.0014]
[1773585056818,0.08953293,71450.0,71435.0,0.0014]
[1773585057019,0.04627002,71449.0,71435.0,0.0014]
[1773585057218,0.04627002,71449.0,71431.0,0.00368]
[1773585057424,0.041984,71444.0,71432.0,0.0014]
[1773585057718,0.08953293,71450.0,71431.0,0.00368]
[1773585057719,0.08813293,71442.0,71431.0,0.00368]
[1773585057918,0.13440295,71442.0,71431.0,0.00368]
[1773585058433,0.041987,71439.0,71431.0,0.00368]
[1773585058639,0.041989,71437.0,71431.0,0.00368]
[1773585058930,0.041987,71439.0,71431.0,0.00368]
[1773585059722,0.041986,71441.0,71431.0,0.00368]
[1773585060427,0.13440295,71441.0,71414.0,0.11992481]
[1773585060633,0.041989,71436.0,71424.0,0.041995]
[1773585060830,0.041989,71436.0,71425.0,0.0014]
[1773585061124,0.041989,71436.0,71426.0,0.0014]
[1773585062127,0.041988,71438.0,71426.0,0.0014]
[1773585062317,0.041988,71438.0,71426.0,0.04791575]
[1773585063132,0.041989,71437.0,71426.0,0.04791575]
[1773585064929,0.041989,71437.0,71426.0,0.0014]
[1773585070134,0.0014,71449.0,71433.0,0.041991]
[1773585070328,0.041984,71444.0,71433.0,0.041991]
[1773585070637,0.041986,71442.0,71431.0,0.041992]
[1773585070838,0.0014,71449.0,71426.0,0.04791575]
[1773585070839,0.041986,71441.0,71429.0,0.041993]
[1773585071225,0.041989,71437.0,71421.0,0.12900234]
[1773585071424,0.041989,71437.0,71422.0,0.0014]
[1773585071628,0.04627002,71439.0,71422.0,0.0014]
[1773585071933,0.041987,71439.0,71427.0,0.041994]
[1773585072139,0.04627002,71438.0,71427.0,0.041994]
[1773585073940,0.04627002,71438.0,71422.0,0.0014]
[1773585074332,0.041988,71437.0,71426.0,0.041995]
[1773585074533,0.04627002,71438.0,71426.0,0.041995]
[1773585074734,0.041987,71439.0,71426.0,0.041995]
[1773585075146,0.0014,71443.0,71426.0,0.041995]
[1773585075846,0.041988,71439.0,71427.0,0.041994]
[1773585076744,0.041988,71438.0,71427.0,0.041994]
[1773585076940,0.041988,71438.0,71423.0,0.04651575]
[1773585077141,0.041988,71438.0,71425.0,0.041995]
[1773585077443,0.041988,71437.0,71425.0,0.041995]
[1773585077645,0.04199,71434.0,71422.0,0.0014]
[1773585078043,0.041991,71433.0,71422.0,0.043397]
[1773585079047,0.04627002,71443.0,71431.0,0.041992]
[1773585079242,0.08821717,71450.0,71429.0,0.0014]
[1773585079243,0.041987,71440.0,71429.0,0.0014]
[1773585079841,0.041987,71439.0,71429.0,0.0014]
[1773585080044,0.041988,71438.0,71429.0,0.0014]
[1773585080552,0.041988,71438.0,71427.0,0.041994]
[1773585080849,0.041988,71438.0,71429.0,0.0014]
[1773585082150,0.041989,71437.0,71429.0,0.0014]
[1773585084143,0.041989,71436.0,71423.0,0.041996]
[1773585084454,0.04199,71434.0,71423.0,0.041996]
[1773585084953,0.04199,71434.0,71424.0,0.0014]
[1773585085447,0.04199,71434.0,71425.0,0.0014]
[1773585085748,0.04199,71434.0,71423.0,0.041996]
[1773585085938,0.04199,71434.0,71424.0,0.0014]
[1773585086339,0.04416275,71435.0,71425.0,0.043395]
[1773585086755,0.04416275,71435.0,71425.0,0.041995]
[1773585086956,0.041989,71437.0,71425.0,0.043395]
[1773585091059,0.04416275,71450.0,71421.0,0.04373188]
[1773585091261,0.041983,71446.0,71433.0,0.04199]
[1773585091459,0.041984,71445.0,71434.0,0.0014]
[1773585091860,0.041984,71445.0,71435.0,0.0014]
[1773585092659,0.0014,71453.0,71435.0,0.0014]
[1773585092860,0.20606303,71452.0,71435.0,0.0014]
[1773585093046,0.04416275,71455.0,71435.0,0.0014]
[1773585093047,0.041983,71447.0,71435.0,0.0014]
[1773585093249,0.041983,71446.0,71435.0,0.0014]
[1773585094464,0.041982,71448.0,71435.0,0.0014]
[1773585094662,0.0014,71455.0,71436.0,0.04373188]
[1773585094861,0.04416275,71461.0,71441.0,0.04373188]
[1773585095063,0.20455124,71457.0,71441.0,0.04373188]
[1773585095367,0.049346,71458.0,71445.0,0.041983]
[1773585095573,0.049346,71458.0,71450.0,0.04198]
[1773585095574,0.00737,71458.0,71450.0,0.04198]
[1773585095870,0.13237992,71470.0,71450.0,0.04198]
[1773585095871,0.001,71455.0,71450.0,0.04338]
[1773585096070,0.0014,71466.0,71453.0,0.041978]
[1773585096264,0.041972,71465.0,71453.0,0.041978]
[1773585096772,0.041972,71465.0,71451.0,0.04198]
[1773585096974,0.041971,71467.0,71451.0,0.04373188]
[1773585097168,0.00368,71458.0,71451.0,0.04373188]
[1773585098073,0.00368,71458.0,71453.0,0.041978]
[1773585098371,0.00368,71458.0,71451.0,0.04198]
[1773585098877,0.00368,71458.0,71453.0,0.041978]
[1773585099069,0.041971,71466.0,71453.0,0.041978]
[1773585099775,0.04197,71468.0,71454.0,0.041978]
[1773585100474,0.00368,71458.0,71454.0,0.041978]
[1773585100673,0.041971,71467.0,71454.0,0.041978]
[1773585103070,0.04416275,71472.0,71451.0,0.04373188]
[1773585103277,0.041969,71471.0,71457.0,0.041976]
[1773585103462,0.00368,71467.0,71457.0,0.041976]
[1773585103967,0.00368,71467.0,71458.0,0.041975]
[1773585104168,0.00368,71467.0,71459.0,0.0014]
[1773585108679,0.045651,71467.0,71459.0,0.0014]
[1773585108881,0.04416275,71475.0,71459.0,0.0014]
[1773585109088,0.13018617,71470.0,71459.0,0.0014]
[1773585109770,0.08821717,71470.0,71459.0,0.043375]
[1773585110480,0.09189717,71470.0,71460.0,0.0014]
[1773585110980,0.09189717,71470.0,71461.0,0.0014]
[1773585111378,0.09189717,71470.0,71459.0,0.041975]
[1773585111578,0.09189717,71470.0,71460.0,0.0014]
[1773585112082,0.09189717,71470.0,71461.0,0.0014]
[1773585115384,0.09189717,71470.0,71460.0,0.041975]
[1773585115573,0.09189717,71470.0,71461.0,0.0014]
[1773585115882,0.09189717,71470.0,71460.0,0.041975]
[1773585116078,0.09189717,71470.0,71461.0,0.0014]
[1773585116384,0.09189717,71470.0,71460.0,0.041975]
[1773585116584,0.09189717,71470.0,71461.0,0.0014]
[1773585117283,0.04238268,71469.0,71449.0,0.00368]
[1773585117479,0.04238268,71469.0,71450.0,0.0014]
[1773585117882,0.08821717,71460.0,71451.0,0.0014]
[1773585118073,0.04238268,71463.0,71452.0,0.0014]
[1773585118274,0.04238268,71463.0,71449.0,0.00368]
[1773585118584,0.04238268,71457.0,71448.0,0.0014]
[1773585120385,0.0014,71463.0,71448.0,0.0014]
[1773585120386,0.041975,71461.0,71448.0,0.0014]
[1773585120787,0.041975,71461.0,71448.0,0.043381]
[1773585120982,0.00368,71457.0,71448.0,0.043381]
[1773585124890,0.0014,71463.0,71453.0,0.041979]
[1773585125085,0.04378268,71474.0,71451.0,0.04458444]
[1773585125389,0.04197,71468.0,71456.0,0.041977]
[1773585126080,0.04197,71468.0,71457.0,0.0014]
[1773585126276,0.041971,71467.0,71457.0,0.0014]
[1773585126687,0.04197,71469.0,71457.0,0.0014]
[1773585126889,0.04197,71468.0,71457.0,0.0014]
[1773585128180,0.04565,71468.0,71457.0,0.0014]
[1773585129291,0.00368,71468.0,71457.0,0.0014]
[1773585129887,0.00368,71468.0,71459.0,0.041975]
[1773585130997,0.00368,71468.0,71457.0,0.043376]
[1773585131192,0.04565,71468.0,71457.0,0.0014]
[1773585131998,0.04565,71468.0,71457.0,0.043376]
[1773585133694,0.00368,71468.0,71457.0,0.043376]
[1773585133883,0.00368,71468.0,71458.0,0.041976]
[1773585159516,0.00368,71468.0,71458.0,0.04075282]
[1773585161116,0.00368,71468.0,71460.0,0.041974]
[1773585166917,0.00368,71468.0,71458.0,0.041976]
[1773585167115,0.00368,71468.0,71458.0,0.08272882]
[1773585173614,0.041969,71470.0,71459.0,0.03802522]
[1773585175211,0.0014,71477.0,71458.0,0.041976]
[1773585175417,0.19302929,71476.0,71458.0,0.041976]
[1773585175624,0.19302929,71475.0,71458.0,0.041976]
[1773585175825,0.19302929,71474.0,71458.0,0.041976]
[1773585176028,0.19302929,71473.0,71458.0,0.041976]
[1773585176326,0.19302929,71472.0,71458.0,0.041976]
[1773585176523,0.04082089,71477.0,71458.0,0.041976]
[1773585176822,0.19301924,71476.0,71458.0,0.041976]
[1773585177019,0.19301924,71475.0,71458.0,0.041976]
[1773585177322,0.00368,71473.0,71458.0,0.041976]
[1773585177521,0.19301924,71472.0,71458.0,0.041976]
[1773585177720,0.00368,71473.0,71458.0,0.041976]
[1773585177919,0.19296573,71472.0,71458.0,0.041976]
[1773585178122,0.041969,71470.0,71458.0,0.041976]
[1773585181529,0.041969,71471.0,71459.0,0.041975]
[1773585183333,0.00368,71473.0,71457.0,0.03942522]
[1773585183517,0.03942089,71493.0,71475.0,0.041965]
[1773585183723,0.03942089,71493.0,71476.0,0.0014]
[1773585183724,0.00840012,71482.0,71476.0,0.0014]
[1773585184325,0.04082089,71493.0,71476.0,0.0014]
[1773585184326,0.03942089,71493.0,71476.0,0.043365]
[1773585184524,0.041957,71490.0,71477.0,0.041964]
[1773585184727,0.03942089,71498.0,71477.0,0.041964]
[1773585184918,0.00840012,71486.0,71477.0,0.041964]
[1773585185335,0.04082089,71498.0,71479.0,0.041964]
[1773585185529,0.041956,71493.0,71480.0,0.041962]
[1773585185734,0.041954,71495.0,71477.0,0.03802522]
[1773585185936,0.00840012,71490.0,71482.0,0.041962]
[1773585186934,0.00840012,71490.0,71483.0,0.0014]
[1773585187229,0.05035712,71490.0,71483.0,0.0014]
[1773585187432,0.00840012,71490.0,71476.0,0.041965]
[1773585187634,0.05035712,71490.0,71477.0,0.043364]
[1773585187825,0.05035712,71490.0,71478.0,0.0014]
[1773585188433,0.00368,71487.0,71478.0,0.0014]
[1773585188833,0.00368,71487.0,71478.0,0.043364]
[1773585190540,0.041957,71490.0,71478.0,0.043364]
[1773585190742,0.00840012,71489.0,71478.0,0.043364]
[1773585191834,0.01208012,71489.0,71478.0,0.043364]
[1773585193243,0.041959,71487.0,71478.0,0.0014]
[1773585193739,0.03942089,71487.0,71470.0,8.2e-07]
[1773585194037,0.08953541,71490.0,71463.0,0.13060858]
[1773585194038,0.03942089,71477.0,71463.0,0.13060858]
[1773585194239,0.00840012,71470.0,71464.0,0.0014]
[1773585194443,0.00840012,71470.0,71465.0,0.0014]
[1773585194643,0.00840012,71470.0,71466.0,0.0014]
[1773585195044,0.00840012,71470.0,71460.0,0.041974]
[1773585195247,0.00840012,71470.0,71463.0,0.00368]
[1773585197555,0.00840012,71470.0,71461.0,0.0014]
[1773585197754,0.00840012,71470.0,71461.0,0.043374]
[1773585200357,0.041967,71474.0,71461.0,0.043374]
[1773585201056,0.041967,71474.0,71462.0,0.041973]
[1773585206864,0.041967,71474.0,71462.0,0.17300224]
[1773585207160,0.00840012,71469.0,71462.0,0.17300224]
[1773585208463,0.00840012,71469.0,71462.0,0.041973]
[1773585208760,0.00840012,71469.0,71463.0,0.0014]
[1773585209150,0.00840012,71469.0,71462.0,0.041973]
[1773585209350,0.00840012,71469.0,71463.0,0.0014]
[1773585209556,0.00840012,71469.0,71462.0,0.041973]
[1773585209753,0.00840012,71469.0,71463.0,0.0014]
[1773585212361,0.05218982,71469.0,71461.0,0.0014]
[1773585212765,0.0437897,71469.0,71461.0,0.0014]
[1773585213558,0.0437897,71469.0,71453.0,0.12793175]
[1773585213757,0.00840012,71465.0,71454.0,0.0014]
[1773585213956,0.00840012,71465.0,71455.0,0.041977]
[1773585214161,0.00840012,71465.0,71456.0,0.0014]
[1773585214666,0.00840012,71465.0,71457.0,0.0014]
[1773585215058,0.00840012,71465.0,71452.0,0.12663899]
[1773585215258,0.00840012,71465.0,71458.0,0.0014]
[1773585215455,0.00840012,71465.0,71459.0,0.0014]
[1773585215652,0.00840012,71465.0,71460.0,0.0014]
[1773585216067,0.00840012,71465.0,71455.0,0.041977]
[1773585216370,0.00840012,71465.0,71460.0,0.0014]
[1773585218569,0.00840012,71465.0,71455.0,0.041977]
[1773585218768,0.00840012,71465.0,71460.0,0.0014]
[1773585219562,0.00840012,71465.0,71455.0,0.041977]
[1773585219765,0.00840012,71465.0,71456.0,0.043377]
[1773585220162,0.00840012,71465.0,71457.0,0.0014]
[1773585220367,0.041971,71467.0,71457.0,0.0014]
[1773585220563,0.041971,71467.0,71456.0,0.041977]
[1773585220767,0.041971,71467.0,71457.0,0.0014]
[1773585221162,0.00840012,71464.0,71458.0,0.0014]
[1773585221669,0.00840012,71464.0,71459.0,0.0014]
[1773585222168,0.00840012,71464.0,71460.0,0.0014]
[1773585222561,0.00840012,71464.0,71456.0,0.041977]
[1773585222759,0.00840012,71464.0,71457.0,0.0014]
[1773585223160,0.00840012,71464.0,71458.0,0.0014]
[1773585223666,0.00840012,71464.0,71459.0,0.0014]
[1773585224059,0.00840012,71464.0,71456.0,0.041977]
[1773585224260,0.00840012,71464.0,71457.0,0.0014]
[1773585224570,0.00840012,71464.0,71453.0,0.2518738]
[1773585224961,0.00840012,71464.0,71454.0,0.0014]
[1773585225766,0.04197,71469.0,71454.0,0.0014]
[1773585225969,0.04197,71469.0,71457.0,0.041976]
[1773585226477,0.00840012,71464.0,71457.0,0.041976]
[1773585229866,0.00840012,71464.0,71454.0,0.04220927]
[1773585230072,0.00840012,71464.0,71458.0,0.041976]
[1773585230662,0.00840012,71464.0,71456.0,0.041977]
[1773585231280,0.00840012,71464.0,71458.0,0.001]
[1773585231774,0.00840012,71464.0,71456.0,0.041977]
[1773585234076,0.00840012,71464.0,71457.0,0.0014]
[1773585240479,0.04197,71469.0,71457.0,0.0014]
[1773585242779,0.03892484,71485.0,71460.0,0.03893699]
[1773585242976,0.041962,71482.0,71470.0,0.041968]
[1773585243181,0.08812536,71500.0,71471.0,0.0014]
[1773585243182,0.03892484,71490.0,71471.0,0.0014]
[1773585243478,0.04196,71485.0,71471.0,0.0014]
[1773585243681,0.041961,71484.0,71471.0,0.043368]
[1773585244075,0.03892484,71480.0,71470.0,0.0014]
[1773585244383,0.041965,71478.0,71470.0,0.0014]
[1773585244579,0.041965,71477.0,71470.0,0.0014]
[1773585244779,0.041965,71477.0,71465.0,0.2518738]
[1773585244980,0.041965,71477.0,71466.0,0.0014]
[1773585245182,0.041965,71477.0,71465.0,0.2518738]
[1773585245183,0.08088984,71477.0,71467.0,0.0014]
[1773585245783,0.03892484,71477.0,71468.0,0.0014]
[1773585246981,0.08088984,71477.0,71468.0,0.0014]
[1773585247586,0.08088984,71477.0,71471.0,0.00368]
[1773585248182,0.00368,71474.0,71471.0,0.00368]
[1773585255802,0.03892484,71485.0,71468.0,0.0014]
[1773585255986,0.041964,71478.0,71468.0,0.0014]
[1773585256386,0.041965,71477.0,71468.0,0.0014]
[1773585257902,0.041966,71476.0,71468.0,0.00508]
[1773585258910,0.00368,71487.0,71468.0,0.00508]
[1773585259203,0.041962,71482.0,71468.0,0.04401699]
[1773585260204,0.041962,71482.0,71471.0,0.041968]
[1773585262005,0.041963,71481.0,71469.0,0.041969]
[1773585262206,0.041963,71481.0,71470.0,0.00368]
[1773585264211,0.041963,71481.0,71469.0,0.041969]
[1773585265606,0.041963,71481.0,71470.0,0.00368]
[1773585267810,0.041963,71481.0,71470.0,0.045648]
[1773585279002,0.041963,71481.0,71470.0,0.00368]
[1773585279202,0.041964,71479.0,71470.0,0.00368]
[1773585280010,0.08210123,71479.0,71470.0,0.00368]
[1773585280212,0.04013723,71478.0,71471.0,0.0014]
[1773585280517,0.04013723,71478.0,71472.0,0.0014]
[1773585281913,0.04013723,71478.0,71474.0,0.00368]
[1773585282216,0.041963,71481.0,71474.0,0.00368]
[1773585282513,0.00368,71476.0,71474.0,0.00368]
[1773585284709,0.04013723,71487.0,71472.0,0.0014]
[1773585284917,0.041959,71486.0,71473.0,0.041967]
[1773585285117,0.041959,71488.0,71474.0,0.25171432]
[1773585285713,0.04196,71486.0,71475.0,0.041965]
[1773585286117,0.04196,71486.0,71474.0,0.25171432]
[1773585286415,0.04196,71486.0,71473.0,0.29368132]
[1773585287417,0.00368,71494.0,71473.0,0.29368132]
[1773585287418,0.04196,71485.0,71473.0,0.29368132]
[1773585287622,0.04013723,71488.0,71473.0,0.25171432]
[1773585289222,0.04196,71485.0,71473.0,0.29368132]
[1773585292421,0.041959,71487.0,71474.0,0.041966]
[1773585293028,0.04196,71486.0,71474.0,0.041966]
[1773585294229,0.04196,71485.0,71473.0,0.25171432]
[1773585294523,0.041961,71484.0,71473.0,0.25171432]
[1773585296428,0.04196,71486.0,71472.0,0.25679432]
[1773585297228,0.04196,71485.0,71474.0,0.041966]
[1773585297430,0.04196,71485.0,71472.0,0.29876132]
[1773585297931,0.04196,71485.0,71473.0,0.041967]
[1773585300332,0.041959,71487.0,71472.0,0.25679432]
[1773585300534,0.04264862,71494.0,71472.0,0.29576693]
[1773585300733,0.041958,71490.0,71477.0,0.041964]
[1773585301032,0.041957,71491.0,71480.0,0.08809501]
[1773585301333,0.041957,71491.0,71481.0,0.0014]
[1773585301521,0.041957,71490.0,71481.0,0.0014]
[1773585308040,0.041958,71489.0,71481.0,0.0014]
[1773585308645,0.03896862,71491.0,71482.0,0.041962]
[1773585308841,0.00368,71494.0,71481.0,0.0014]
[1773585309043,0.03896862,71509.0,71493.0,0.041955]
[1773585309242,0.03896862,71509.0,71494.0,0.0014]
[1773585309543,0.03206862,71509.0,71494.0,0.0014]
[1773585309940,0.041949,71504.0,71494.0,0.0014]
[1773585310145,0.03896862,71489.0,71479.0,0.31345958]
[1773585310445,0.041966,71476.0,71472.0,0.0014]
[1773585310639,0.03896862,71475.0,71473.0,0.0014]
[1773585310945,0.08809501,71480.0,71474.0,0.0014]
[1773585310946,0.03896862,71480.0,71474.0,0.0014]
[1773585311540,0.03896862,71478.0,71474.0,0.0014]
[1773585311741,0.03896862,71477.0,71474.0,0.0014]
[1773585311942,0.041967,71474.0,71460.0,0.08809501]
[1773585312143,0.041967,71474.0,71461.0,0.0014]
[1773585312742,0.03896862,71476.0,71461.0,0.0014]
[1773585312948,0.03896862,71469.0,71449.0,0.0014]
[1773585313139,0.03896862,71462.0,71448.0,0.12991605]
[1773585313336,0.03896862,71462.0,71449.0,0.0014]
[1773585313536,0.03896862,71470.0,71449.0,0.0014]
[1773585313745,0.03896862,71468.0,71449.0,0.0014]
[1773585313936,0.041975,71460.0,71449.0,0.0014]
[1773585314249,0.041977,71457.0,71449.0,0.0014]
[1773585314848,0.041977,71457.0,71450.0,0.0014]
[1773585317655,0.041999,71419.0,71403.0,0.00213]
[1773585317851,0.17619002,71460.0,71398.0,6.7e-07]
[1773585317852,0.08809501,71413.0,71398.0,6.7e-07]
[1773585318053,0.0014,71412.0,71385.0,0.0014]
[1773585318251,0.042012,71397.0,71385.0,0.0014]
[1773585318554,0.042013,71395.0,71385.0,0.0014]
[1773585318741,0.00015586,71394.0,71385.0,0.0014]
[1773585318940,0.042005,71408.0,71387.0,0.03897261]
[1773585319147,0.0014,71415.0,71387.0,0.03897261]
[1773585319356,0.04036862,71415.0,71387.0,0.03897261]
[1773585319553,0.042009,71403.0,71389.0,0.03897261]
[1773585319945,0.00013945,71402.0,71389.0,0.03897261]
[1773585321052,0.00013945,71402.0,71389.0,0.04265261]
[1773585321551,0.04201,71401.0,71389.0,0.04265261]
[1773585323951,0.00013945,71402.0,71389.0,0.00368]
[1773585324256,0.042016,71390.0,71382.0,0.0014]
[1773585324454,0.04782325,71400.0,71377.0,0.0014]
[1773585324648,0.042018,71386.0,71377.0,0.0014]
[1773585324849,0.042024,71377.0,71376.0,0.0014]
[1773585325050,0.042024,71377.0,71375.0,0.0014]
[1773585325255,0.042026,71373.0,71370.0,0.04874647]
[1773585325460,0.04782325,71389.0,71371.0,0.0014]
[1773585325760,0.042023,71378.0,71372.0,0.0014]
[1773585325957,0.042022,71381.0,71372.0,0.0014]
[1773585326152,0.042023,71378.0,71372.0,0.0014]
[1773585326546,0.042022,71381.0,71372.0,0.0014]
[1773585326745,0.00840781,71383.0,71372.0,0.0014]
[1773585326950,0.04782325,71389.0,71372.0,0.0014]
[1773585327554,0.00840781,71382.0,71372.0,0.0014]
[1773585327754,0.042024,71378.0,71372.0,0.0014]
[1773585329263,0.00368,71382.0,71372.0,0.0014]
[1773585329462,0.01208781,71382.0,71372.0,0.0024]
[1773585329664,0.05991106,71382.0,71365.0,0.0014]
[1773585330276,0.042025,71374.0,71365.0,0.0014]
[1773585330467,0.0001236,71373.0,71365.0,0.0014]
[1773585330670,0.0421496,71373.0,71365.0,0.0014]
[1773585331861,0.0001236,71373.0,71365.0,0.0014]
[1773585332063,0.0001236,71373.0,71357.0,0.0014]
[1773585332360,0.00368,71383.0,71361.0,0.04874647]
[1773585332559,0.00840781,71376.0,71363.0,0.04874647]
[1773585332775,0.042024,71377.0,71363.0,0.04874647]
[1773585333165,0.042025,71375.0,71363.0,0.04874647]
[1773585333365,0.042024,71377.0,71363.0,0.04874647]
[1773585333555,0.02248785,71377.0,71364.0,0.0014]
[1773585333761,0.02248785,71377.0,71365.0,0.04874647]
[1773585334769,0.042025,71376.0,71365.0,0.04874647]
[1773585338667,0.00368,71383.0,71370.0,0.042027]
[1773585338873,0.00368,71383.0,71369.0,0.09077447]
[1773585340180,0.042021,71382.0,71369.0,0.09077447]
[1773585340377,0.00368,71383.0,71369.0,0.09077447]
[1773585341372,0.04782325,71391.0,71369.0,0.09077447]
[1773585341681,0.04782325,71391.0,71370.0,0.04874647]
[1773585341882,0.04782325,71391.0,71371.0,0.0014]
[1773585342080,0.042019,71385.0,71373.0,0.04874647]
[1773585342382,0.03501896,71385.0,71373.0,0.04874647]
[1773585342782,0.00368,71383.0,71373.0,0.04874647]
[1773585342980,0.03501896,71385.0,71373.0,0.04874647]
[1773585343182,0.06473332,71413.0,71382.0,0.04202]
[1773585343183,0.042013,71395.0,71382.0,0.04202]
[1773585343376,0.0014,71402.0,71383.0,0.0014]
[1773585343778,0.042013,71395.0,71383.0,0.0014]
[1773585344285,0.042014,71394.0,71383.0,0.0014]
[1773585345075,0.042014,71394.0,71387.0,0.00368]
[1773585345682,0.00368,71390.0,71387.0,0.00368]
[1773585348871,0.042015,71392.0,71383.0,0.0014]
[1773585349071,0.04203,71367.0,71346.0,0.04874647]
[1773585349284,0.042029,71368.0,71356.0,0.02329692]
[1773585349476,0.04782325,71371.0,71357.0,0.02329692]
[1773585349676,0.04782325,71371.0,71358.0,0.02189692]
[1773585349878,0.04782325,71371.0,71359.0,0.02189692]
[1773585350078,0.04782325,71371.0,71360.0,0.02189692]
[1773585350272,0.04782325,71371.0,71361.0,0.02189692]
[1773585350479,0.042029,71368.0,71362.0,0.02189692]
[1773585350776,0.042029,71368.0,71363.0,0.02189692]
[1773585350976,0.042029,71368.0,71364.0,0.02189692]
[1773585351178,0.042029,71368.0,71365.0,9.2e-07]
[1773585351485,0.042028,71370.0,71357.0,0.0014]
[1773585351682,0.042029,71369.0,71357.0,0.0014]
[1773585353787,0.042029,71368.0,71357.0,0.0014]
[1773585354678,0.042028,71370.0,71357.0,0.0014]
[1773585354984,0.042029,71369.0,71357.0,0.0014]
[1773585355582,0.042029,71368.0,71357.0,0.0014]
[1773585356387,0.042031,71365.0,71357.0,0.0014]
[1773585358182,0.042031,71365.0,71358.0,0.0014]
[1773585358389,0.042031,71365.0,71359.0,0.0014]
[1773585358891,0.04795942,71376.0,71359.0,0.043434]
[1773585359190,0.042028,71371.0,71359.0,0.043434]
[1773585359686,0.04795942,71376.0,71359.0,0.0014]
[1773585359885,0.042025,71376.0,71363.0,0.042031]
[1773585360390,0.042025,71376.0,71359.0,0.05198351]
[1773585360391,0.042025,71375.0,71361.0,0.042033]
[1773585360595,0.042025,71375.0,71359.0,0.05198351]
[1773585360781,0.04795942,71388.0,71365.0,0.05058351]